[Event "Early-Titled-Tuesday-Blitz-October-10-2023"]
[Site "Chess.com"]
[Date "2023.10.10"]
[Round "2"]
[White "marcodobrikov"]
[Black "vishwa_vijeta"]
[Result "1/2-1/2"]
[WhiteElo "2766"]
[BlackElo "2555"]
[TimeControl "180+1"]
[EndTime "8:18:50 PDT"]
[Termination "Game drawn by repetition"]

1. d4 {[%clk 0:03:00.5]} 1... Nf6 {[%clk 0:02:57.7]} 2. Nc3 {[%clk 0:02:59.9]}
2... d5 {[%clk 0:02:49.1]} 3. Bf4 {[%clk 0:03:00.3]} 3... c5 {[%clk 0:02:45]} 4.
e3 {[%clk 0:03:01.1]} 4... a6 {[%clk 0:02:42.2]} 5. f3 {[%clk 0:02:56.5]} 5...
e6 {[%clk 0:02:39.6]} 6. g4 {[%clk 0:02:55.1]} 6... Nc6 {[%clk 0:02:37.8]} 7.
Nge2 {[%clk 0:02:54.8]} 7... cxd4 {[%clk 0:02:37.4]} 8. exd4 {[%clk 0:02:55.7]}
8... Bd6 {[%clk 0:02:37.1]} 9. Qd2 {[%clk 0:02:55]} 9... Bxf4 {[%clk 0:02:32.1]}
10. Nxf4 {[%clk 0:02:55.6]} 10... Qb6 {[%clk 0:02:29]} 11. O-O-O {[%clk
0:02:54.8]} 11... Bd7 {[%clk 0:02:24.6]} 12. g5 {[%clk 0:02:55.5]} 12... Ng8
{[%clk 0:02:22.3]} 13. h4 {[%clk 0:02:44.8]} 13... Nge7 {[%clk 0:02:21.4]} 14.
h5 {[%clk 0:02:39.9]} 14... Nf5 {[%clk 0:02:17.8]} 15. Bd3 {[%clk 0:02:31.6]}
15... Nfxd4 {[%clk 0:02:13.4]} 16. g6 {[%clk 0:02:30.5]} 16... fxg6 {[%clk
0:02:06.9]} 17. hxg6 {[%clk 0:02:27.2]} 17... h6 {[%clk 0:02:02.8]} 18. Nfxd5
{[%clk 0:02:14.7]} 18... Qa5 {[%clk 0:01:32.3]} 19. Qf4 {[%clk 0:01:48.9]} 19...
Rf8 {[%clk 0:01:10.6]} 20. Nc7+ {[%clk 0:01:39.6]} 20... Ke7 {[%clk 0:01:07.6]}
21. Qh4+ {[%clk 0:01:30.5]} 21... Qg5+ {[%clk 0:01:07.6]} 22. Qxg5+ {[%clk
0:01:30.4]} 22... hxg5 {[%clk 0:01:08.5]} 23. Nxa8 {[%clk 0:01:30.3]} 23... Rxa8
{[%clk 0:01:09.4]} 24. Rh7 {[%clk 0:01:22]} 24... Rg8 {[%clk 0:01:07.9]} 25. Ne4
{[%clk 0:01:20.7]} 25... Nxf3 {[%clk 0:01:05.9]} 26. Nc5 {[%clk 0:01:20]} 26...
Be8 {[%clk 0:01:04.4]} 27. Be4 {[%clk 0:01:18.9]} 27... g4 {[%clk 0:00:57.4]}
28. Nxe6 {[%clk 0:01:19.5]} 28... Bxg6 {[%clk 0:00:44.4]} 29. Bxg6 {[%clk
0:01:11.8]} 29... Kxe6 {[%clk 0:00:44]} 30. Be4 {[%clk 0:01:10.6]} 30... Ke5
{[%clk 0:00:39.2]} 31. Bd5 {[%clk 0:00:49.4]} 31... Rd8 {[%clk 0:00:35.4]} 32.
c4 {[%clk 0:00:36.2]} 32... Ncd4 {[%clk 0:00:25.8]} 33. Rxg7 {[%clk 0:00:34.7]}
33... Kf4 {[%clk 0:00:24.2]} 34. Rd3 {[%clk 0:00:20.7]} 34... Re8 {[%clk
0:00:24.1]} 35. b4 {[%clk 0:00:12.4]} 35... Re1+ {[%clk 0:00:22.5]} 36. Kb2
{[%clk 0:00:13.3]} 36... Re2+ {[%clk 0:00:23.4]} 37. Ka3 {[%clk 0:00:13.3]}
37... b5 {[%clk 0:00:19.2]} 38. cxb5 {[%clk 0:00:12.9]} 38... axb5 {[%clk
0:00:17.1]} 39. Bxf3 {[%clk 0:00:09.1]} 39... Nxf3 {[%clk 0:00:15.6]} 40. Rd5
{[%clk 0:00:08.4]} 40... Re3+ {[%clk 0:00:13.6]} 41. Kb2 {[%clk 0:00:07.6]}
41... Re2+ {[%clk 0:00:14.2]} 42. Kb3 {[%clk 0:00:08.3]} 42... Re3+ {[%clk
0:00:13.7]} 43. Kc2 {[%clk 0:00:06.9]} 43... Re2+ {[%clk 0:00:13.9]} 44. Kd1
{[%clk 0:00:05.4]} 44... Re1+ {[%clk 0:00:14.1]} 45. Kc2 {[%clk 0:00:05.4]}
45... Re2+ {[%clk 0:00:14.5]} 46. Kc1 {[%clk 0:00:06.3]} 46... Re1+ {[%clk
0:00:14.6]} 47. Kb2 {[%clk 0:00:05.1]} 47... Re2+ {[%clk 0:00:14.7]} 48. Kc3
{[%clk 0:00:05.3]} 48... Re3+ {[%clk 0:00:15]} 49. Rd3 {[%clk 0:00:04.8]} 49...
Re4 {[%clk 0:00:15.2]} 50. Rd5 {[%clk 0:00:03.1]} 50... Re3+ {[%clk 0:00:14.6]}
51. Rd3 {[%clk 0:00:02.8]} 51... Re4 {[%clk 0:00:15]} 52. Rd5 {[%clk 0:00:03.4]}
52... Re3+ {[%clk 0:00:15.1]} 1/2-1/2

[Event "Early-Titled-Tuesday-Blitz-October-10-2023"]
[Site "Chess.com"]
[Date "2023.10.10"]
[Round "2"]
[White "BardArtem"]
[Black "HajiyevKanan"]
[Result "1-0"]
[WhiteElo "2833"]
[BlackElo "2574"]
[TimeControl "180+1"]
[EndTime "8:18:51 PDT"]
[Termination "BardArtem won by checkmate"]

1. e4 {[%clk 0:03:00.9]} 1... c6 {[%clk 0:03:00.9]} 2. Nc3 {[%clk 0:02:56.2]}
2... d5 {[%clk 0:03:01.8]} 3. Qf3 {[%clk 0:02:56.8]} 3... Nf6 {[%clk 0:02:57.5]}
4. e5 {[%clk 0:02:39.5]} 4... Ng8 {[%clk 0:02:57.3]} 5. d4 {[%clk 0:02:34.6]}
5... g6 {[%clk 0:02:57]} 6. Be3 {[%clk 0:02:30.5]} 6... Bf5 {[%clk 0:02:54.2]}
7. O-O-O {[%clk 0:02:28.9]} 7... h5 {[%clk 0:02:51.8]} 8. h3 {[%clk 0:02:24.1]}
8... Bg7 {[%clk 0:02:27.8]} 9. g4 {[%clk 0:02:18.9]} 9... hxg4 {[%clk
0:01:52.2]} 10. hxg4 {[%clk 0:02:19.8]} 10... Rxh1 {[%clk 0:01:52.5]} 11. Qxh1
{[%clk 0:02:20.7]} 11... Bxg4 {[%clk 0:01:52.8]} 12. Qh7 {[%clk 0:02:19.9]}
12... Kf8 {[%clk 0:01:48.2]} 13. Be2 {[%clk 0:02:18.4]} 13... Qd7 {[%clk
0:01:42.6]} 14. Nf3 {[%clk 0:02:03.4]} 14... Qf5 {[%clk 0:01:16.4]} 15. Nh4
{[%clk 0:01:50.5]} 15... Qh5 {[%clk 0:01:14.9]} 16. Qxh5 {[%clk 0:01:49.7]}
16... Bxh5 {[%clk 0:01:11.7]} 17. Bxh5 {[%clk 0:01:48.7]} 17... gxh5 {[%clk
0:01:12.6]} 18. Rg1 {[%clk 0:01:41]} 18... e6 {[%clk 0:01:09.8]} 19. Ne2 {[%clk
0:01:27.4]} 19... c5 {[%clk 0:01:02.2]} 20. Ng3 {[%clk 0:01:15.3]} 20... cxd4
{[%clk 0:00:59.5]} 21. Bxd4 {[%clk 0:01:16.2]} 21... Nc6 {[%clk 0:00:59.1]} 22.
Bc5+ {[%clk 0:01:16]} 22... Nge7 {[%clk 0:00:57.2]} 23. f4 {[%clk 0:01:14.5]}
23... Ke8 {[%clk 0:00:26.6]} 24. Nxh5 {[%clk 0:01:12.3]} 24... Bh6 {[%clk
0:00:26.8]} 25. Kd1 {[%clk 0:00:51.7]} 25... Kd7 {[%clk 0:00:21.9]} 26. Ke2
{[%clk 0:00:45.3]} 26... Rg8 {[%clk 0:00:21.1]} 27. Rxg8 {[%clk 0:00:44.9]}
27... Nxg8 {[%clk 0:00:20.8]} 28. Kf3 {[%clk 0:00:40.1]} 28... b6 {[%clk
0:00:21.3]} 29. Bf2 {[%clk 0:00:37.7]} 29... Nb4 {[%clk 0:00:17.4]} 30. c3
{[%clk 0:00:26.5]} 30... Nxa2 {[%clk 0:00:17.5]} 31. Be3 {[%clk 0:00:21.4]}
31... d4 {[%clk 0:00:11.5]} 32. Bxd4 {[%clk 0:00:15.4]} 32... Nc1 {[%clk
0:00:11.7]} 33. Ke4 {[%clk 0:00:15.6]} 33... Nb3 {[%clk 0:00:10]} 34. Be3 {[%clk
0:00:16.2]} 34... Nc5+ {[%clk 0:00:08.6]} 35. Bxc5 {[%clk 0:00:16.6]} 35... bxc5
{[%clk 0:00:09.5]} 36. Ng2 {[%clk 0:00:11.6]} 36... Kc6 {[%clk 0:00:08.1]} 37.
Ne3 {[%clk 0:00:10.6]} 37... Kb5 {[%clk 0:00:08.2]} 38. b3 {[%clk 0:00:10.6]}
38... a5 {[%clk 0:00:07.9]} 39. Nc4 {[%clk 0:00:11.1]} 39... a4 {[%clk 0:00:08]}
40. Nd6+ {[%clk 0:00:11.7]} 40... Ka5 {[%clk 0:00:08.2]} 41. bxa4 {[%clk
0:00:12]} 41... Kxa4 {[%clk 0:00:08.8]} 42. Nxf7 {[%clk 0:00:12.4]} 42... Bf8
{[%clk 0:00:09.3]} 43. Nd8 {[%clk 0:00:09.7]} 43... Kb3 {[%clk 0:00:09.2]} 44.
Nxe6 {[%clk 0:00:10.3]} 44... Be7 {[%clk 0:00:09.7]} 45. Kd3 {[%clk 0:00:08.4]}
45... c4+ {[%clk 0:00:09.8]} 46. Kd4 {[%clk 0:00:09.3]} 46... Ba3 {[%clk
0:00:09.8]} 47. f5 {[%clk 0:00:07.5]} 47... Nh6 {[%clk 0:00:08.2]} 48. f6 {[%clk
0:00:07.7]} 48... Nf5+ {[%clk 0:00:08.6]} 49. Ke4 {[%clk 0:00:06.9]} 49... Nh4
{[%clk 0:00:08.2]} 50. Nd4+ {[%clk 0:00:04.9]} 50... Kxc3 {[%clk 0:00:07.1]} 51.
e6 {[%clk 0:00:05.2]} 51... Bc5 {[%clk 0:00:05.5]} 52. e7 {[%clk 0:00:04.5]}
52... Ng6 {[%clk 0:00:04.5]} 53. e8=Q {[%clk 0:00:04.2]} 53... Bxd4 {[%clk
0:00:03.7]} 54. Qxg6 {[%clk 0:00:04.7]} 54... Bc5 {[%clk 0:00:03.1]} 55. Qg3+
{[%clk 0:00:04.9]} 55... Kb4 {[%clk 0:00:02.9]} 56. Nf4 {[%clk 0:00:05.6]} 56...
c3 {[%clk 0:00:03.8]} 57. Nd5+ {[%clk 0:00:05.9]} 57... Kc4 {[%clk 0:00:04.3]}
58. Qxc3+ {[%clk 0:00:06.4]} 58... Kb5 {[%clk 0:00:04.9]} 59. Qb3+ {[%clk
0:00:07.1]} 59... Kc6 {[%clk 0:00:05.3]} 60. f7 {[%clk 0:00:07.4]} 60... Bd6
{[%clk 0:00:06]} 61. Qb6+ {[%clk 0:00:07.3]} 61... Kd7 {[%clk 0:00:06.6]} 62.
Qb7+ {[%clk 0:00:07.7]} 62... Ke6 {[%clk 0:00:07]} 63. Nf4+ {[%clk 0:00:07.7]}
63... Bxf4 {[%clk 0:00:06.8]} 64. f8=Q {[%clk 0:00:07.2]} 64... Bd6 {[%clk
0:00:06.6]} 65. Qf5# {[%clk 0:00:07.4]} 1-0

[Event "Early-Titled-Tuesday-Blitz-October-10-2023"]
[Site "Chess.com"]
[Date "2023.10.10"]
[Round "2"]
[White "Tonychess32"]
[Black "Artemiki"]
[Result "1/2-1/2"]
[WhiteElo "2497"]
[BlackElo "2268"]
[TimeControl "180+1"]
[EndTime "8:18:51 PDT"]
[Termination "Game drawn by repetition"]

1. e4 {[%clk 0:03:00.9]} 1... e5 {[%clk 0:02:58]} 2. Bc4 {[%clk 0:03:00.1]} 2...
c6 {[%clk 0:02:54.8]} 3. d3 {[%clk 0:02:59.7]} 3... d5 {[%clk 0:02:51.9]} 4. Bb3
{[%clk 0:02:57.5]} 4... Nf6 {[%clk 0:02:51.1]} 5. Nf3 {[%clk 0:02:56.7]} 5...
Bd6 {[%clk 0:02:50.5]} 6. O-O {[%clk 0:02:55.6]} 6... O-O {[%clk 0:02:46.2]} 7.
Nbd2 {[%clk 0:02:51.9]} 7... h6 {[%clk 0:02:41.3]} 8. Re1 {[%clk 0:02:47.4]}
8... Re8 {[%clk 0:02:38]} 9. c3 {[%clk 0:02:46.9]} 9... a5 {[%clk 0:02:29.5]}
10. a4 {[%clk 0:02:45.8]} 10... Nbd7 {[%clk 0:02:29.1]} 11. Bc2 {[%clk
0:02:37.1]} 11... Nc5 {[%clk 0:02:19.7]} 12. h3 {[%clk 0:02:25]} 12... dxe4
{[%clk 0:02:08.6]} 13. dxe4 {[%clk 0:02:24.2]} 13... Be6 {[%clk 0:02:08.6]} 14.
Nf1 {[%clk 0:02:03.8]} 14... Qc7 {[%clk 0:01:46.5]} 15. Ng3 {[%clk 0:01:56.7]}
15... Rad8 {[%clk 0:01:46.8]} 16. Qe2 {[%clk 0:01:55.7]} 16... Rd7 {[%clk
0:01:29.8]} 17. Be3 {[%clk 0:01:50.7]} 17... Red8 {[%clk 0:01:28.8]} 18. Nh4
{[%clk 0:01:46.5]} 18... Bf8 {[%clk 0:01:13.2]} 19. Rad1 {[%clk 0:01:23]} 19...
Qb6 {[%clk 0:01:08.6]} 20. Bc1 {[%clk 0:00:56]} 20... Bb3 {[%clk 0:00:59.3]} 21.
Be3 {[%clk 0:00:44]} 21... Bxc2 {[%clk 0:00:46.6]} 22. Qxc2 {[%clk 0:00:41.5]}
22... Qb3 {[%clk 0:00:41]} 23. Qxb3 {[%clk 0:00:39.4]} 23... Nxb3 {[%clk
0:00:41.9]} 24. Rxd7 {[%clk 0:00:39.4]} 24... Rxd7 {[%clk 0:00:40.2]} 25. Nf3
{[%clk 0:00:39.6]} 25... Bd6 {[%clk 0:00:35.4]} 26. Kf1 {[%clk 0:00:33.5]} 26...
Bc7 {[%clk 0:00:35.4]} 27. Ke2 {[%clk 0:00:32.8]} 27... b5 {[%clk 0:00:25.4]}
28. axb5 {[%clk 0:00:31.5]} 28... cxb5 {[%clk 0:00:26.3]} 29. Rd1 {[%clk
0:00:26.3]} 29... a4 {[%clk 0:00:22.8]} 30. Rxd7 {[%clk 0:00:26]} 30... Nxd7
{[%clk 0:00:23.7]} 31. Nd2 {[%clk 0:00:16.9]} 31... Nc1+ {[%clk 0:00:21.9]} 32.
Kd1 {[%clk 0:00:16.1]} 32... Nd3 {[%clk 0:00:18]} 33. Kc2 {[%clk 0:00:16.4]}
33... N3c5 {[%clk 0:00:18.7]} 34. Ne2 {[%clk 0:00:13]} 34... f6 {[%clk
0:00:16.7]} 35. Nc1 {[%clk 0:00:12.9]} 35... Kf7 {[%clk 0:00:15.9]} 36. Nd3
{[%clk 0:00:13.1]} 36... Bd6 {[%clk 0:00:10.4]} 37. Nb4 {[%clk 0:00:11.1]} 37...
Ke6 {[%clk 0:00:09.1]} 38. f3 {[%clk 0:00:11.3]} 38... Nb6 {[%clk 0:00:07.8]}
39. Nd3 {[%clk 0:00:11.1]} 39... Nbd7 {[%clk 0:00:05.7]} 40. Nxc5+ {[%clk
0:00:11.1]} 40... Bxc5 {[%clk 0:00:05.7]} 41. Bxc5 {[%clk 0:00:10.2]} 41... Nxc5
{[%clk 0:00:06.6]} 42. Nb1 {[%clk 0:00:08.5]} 42... Kd6 {[%clk 0:00:04.9]} 43.
Na3 {[%clk 0:00:08.6]} 43... Kc6 {[%clk 0:00:05.6]} 44. Nb1 {[%clk 0:00:08.1]}
44... Nb3 {[%clk 0:00:05.1]} 45. Nd2 {[%clk 0:00:06.1]} 45... Nxd2 {[%clk
0:00:05.3]} 46. Kxd2 {[%clk 0:00:06.6]} 46... Kc5 {[%clk 0:00:05.6]} 47. Kd3
{[%clk 0:00:07.1]} 47... g6 {[%clk 0:00:04.1]} 48. g3 {[%clk 0:00:07.5]} 48...
h5 {[%clk 0:00:02.9]} 49. h4 {[%clk 0:00:07.5]} 49... g5 {[%clk 0:00:03.5]} 50.
Kd2 {[%clk 0:00:04.7]} 50... gxh4 {[%clk 0:00:03.2]} 51. gxh4 {[%clk 0:00:04.6]}
51... Kc4 {[%clk 0:00:03.2]} 52. Kc2 {[%clk 0:00:04.9]} 52... b4 {[%clk
0:00:02.8]} 53. cxb4 {[%clk 0:00:05.2]} 53... Kxb4 {[%clk 0:00:03.7]} 54. Kc1
{[%clk 0:00:05.1]} 54... Kb3 {[%clk 0:00:03.8]} 55. Kb1 {[%clk 0:00:05.1]} 55...
a3 {[%clk 0:00:04.3]} 56. bxa3 {[%clk 0:00:05.1]} 56... Kxa3 {[%clk 0:00:05.2]}
57. Kc2 {[%clk 0:00:05.4]} 57... Kb4 {[%clk 0:00:05.8]} 58. Kb2 {[%clk
0:00:04.6]} 58... Kc4 {[%clk 0:00:05.9]} 59. Kc2 {[%clk 0:00:05.1]} 59... Kd4
{[%clk 0:00:06.1]} 60. Kd2 {[%clk 0:00:05.5]} 60... Kc4 {[%clk 0:00:06.7]} 61.
Kc2 {[%clk 0:00:02.6]} 61... Kd4 {[%clk 0:00:06.6]} 62. Kd2 {[%clk 0:00:03.1]}
62... Kc4 {[%clk 0:00:07.1]} 63. Kc2 {[%clk 0:00:03.5]} 1/2-1/2

[Event "Early-Titled-Tuesday-Blitz-October-10-2023"]
[Site "Chess.com"]
[Date "2023.10.10"]
[Round "2"]
[White "JesseFebruary"]
[Black "Casper"]
[Result "0-1"]
[WhiteElo "2066"]
[BlackElo "2432"]
[TimeControl "180+1"]
[EndTime "8:18:51 PDT"]
[Termination "Casper won on time"]

1. e4 {[%clk 0:02:54.3]} 1... c5 {[%clk 0:03:00.9]} 2. Nf3 {[%clk 0:02:48.1]}
2... d6 {[%clk 0:03:01.4]} 3. d4 {[%clk 0:02:45.1]} 3... Nf6 {[%clk 0:03:02.1]}
4. Nc3 {[%clk 0:02:36.6]} 4... cxd4 {[%clk 0:03:02.2]} 5. Nxd4 {[%clk
0:02:36.7]} 5... Nc6 {[%clk 0:03:03.1]} 6. Be3 {[%clk 0:02:32.2]} 6... e5 {[%clk
0:03:02.6]} 7. Nde2 {[%clk 0:02:27.1]} 7... Be7 {[%clk 0:02:26.3]} 8. g3 {[%clk
0:02:21.6]} 8... O-O {[%clk 0:02:23.7]} 9. Bg2 {[%clk 0:02:18.9]} 9... Ng4
{[%clk 0:02:23.7]} 10. Bc1 {[%clk 0:02:00.4]} 10... f5 {[%clk 0:02:23.6]} 11.
O-O {[%clk 0:01:47.8]} 11... Bg5 {[%clk 0:01:56.1]} 12. Qd5+ {[%clk 0:01:11.4]}
12... Kh8 {[%clk 0:01:54.2]} 13. Bxg5 {[%clk 0:00:49.9]} 13... Qxg5 {[%clk
0:01:53.1]} 14. Rad1 {[%clk 0:00:50.1]} 14... Rf6 {[%clk 0:01:19.4]} 15. h4
{[%clk 0:00:36.5]} 15... Qg6 {[%clk 0:01:16.9]} 16. exf5 {[%clk 0:00:27.2]}
16... Bxf5 {[%clk 0:01:15.5]} 17. Ne4 {[%clk 0:00:25.6]} 17... Re6 {[%clk
0:00:49.2]} 18. Nxd6 {[%clk 0:00:21.8]} 18... Rd8 {[%clk 0:00:47.4]} 19. Qb5
{[%clk 0:00:17.1]} 19... Rexd6 {[%clk 0:00:41.2]} 20. Rxd6 {[%clk 0:00:16.7]}
20... Qxd6 {[%clk 0:00:42.1]} 21. Qxb7 {[%clk 0:00:17.1]} 21... Nd4 {[%clk
0:00:31.6]} 22. Nc3 {[%clk 0:00:17]} 22... a5 {[%clk 0:00:26.1]} 23. Qa7 {[%clk
0:00:14.5]} 23... Qb4 {[%clk 0:00:22.5]} 24. Rd1 {[%clk 0:00:13.2]} 24... Ne2+
{[%clk 0:00:20.3]} 25. Nxe2 {[%clk 0:00:11]} 25... Rxd1+ {[%clk 0:00:20.5]} 26.
Bf1 {[%clk 0:00:11.9]} 26... h6 {[%clk 0:00:20.1]} 27. Qa8+ {[%clk 0:00:10.6]}
27... Kh7 {[%clk 0:00:20.1]} 28. Qf3 {[%clk 0:00:11.2]} 28... Qe4 {[%clk
0:00:16.2]} 29. Qxe4 {[%clk 0:00:07.9]} 29... Bxe4 {[%clk 0:00:17.1]} 30. Nc3
{[%clk 0:00:08.8]} 30... Re1 {[%clk 0:00:16.6]} 31. Nxe4 {[%clk 0:00:08.3]}
31... Rxe4 {[%clk 0:00:17.5]} 32. Bd3 {[%clk 0:00:08.8]} 32... Nf6 {[%clk
0:00:13.3]} 33. f3 {[%clk 0:00:09.3]} 33... Kg6 {[%clk 0:00:12.7]} 34. fxe4
{[%clk 0:00:09.8]} 34... Kh5 {[%clk 0:00:13]} 35. Kf2 {[%clk 0:00:10.2]} 35...
Kg4 {[%clk 0:00:13.4]} 36. Be2+ {[%clk 0:00:10.7]} 36... Kh3 {[%clk 0:00:13.9]}
37. Kf3 {[%clk 0:00:10.5]} 37... g5 {[%clk 0:00:13.8]} 38. Bf1+ {[%clk
0:00:10.8]} 38... Kh2 {[%clk 0:00:13.9]} 39. hxg5 {[%clk 0:00:11.2]} 39... hxg5
{[%clk 0:00:14.8]} 40. g4 {[%clk 0:00:11.4]} 40... Nd7 {[%clk 0:00:10]} 41. c4
{[%clk 0:00:11.5]} 41... Nc5 {[%clk 0:00:10.1]} 42. b3 {[%clk 0:00:11.9]} 42...
Ne6 {[%clk 0:00:10.6]} 43. Be2 {[%clk 0:00:12.4]} 43... Nd4+ {[%clk 0:00:10.8]}
44. Ke3 {[%clk 0:00:12.7]} 44... Nc2+ {[%clk 0:00:09.7]} 45. Kd2 {[%clk
0:00:12.5]} 45... Nd4 {[%clk 0:00:09.3]} 46. c5 {[%clk 0:00:12.4]} 46... Kg3
{[%clk 0:00:09.5]} 47. Kd3 {[%clk 0:00:12.7]} 47... Kf4 {[%clk 0:00:06]} 48. a3
{[%clk 0:00:10.9]} 48... Nxb3 {[%clk 0:00:06.2]} 49. c6 {[%clk 0:00:11.4]} 49...
Nc5+ {[%clk 0:00:07.1]} 50. Kc4 {[%clk 0:00:10.7]} 50... Nxe4 {[%clk 0:00:07.8]}
51. c7 {[%clk 0:00:10.8]} 51... Nd6+ {[%clk 0:00:07.4]} 52. Kd5 {[%clk
0:00:10.4]} 52... Nc8 {[%clk 0:00:05.2]} 53. Ba6 {[%clk 0:00:10.7]} 53... Na7
{[%clk 0:00:03.6]} 54. c8=Q {[%clk 0:00:10.5]} 54... Nxc8 {[%clk 0:00:03.7]} 55.
Bxc8 {[%clk 0:00:11.4]} 55... e4 {[%clk 0:00:04.2]} 56. Kd4 {[%clk 0:00:11.4]}
56... e3 {[%clk 0:00:03]} 57. Kd3 {[%clk 0:00:07.8]} 57... Kf3 {[%clk
0:00:03.7]} 58. Bb7+ {[%clk 0:00:06.1]} 58... Kf2 {[%clk 0:00:04.4]} 59. Bg2
{[%clk 0:00:01.5]} 59... e2 {[%clk 0:00:04.2]} 0-1

[Event "Early-Titled-Tuesday-Blitz-October-10-2023"]
[Site "Chess.com"]
[Date "2023.10.10"]
[Round "2"]
[White "Daniel_Salinas"]
[Black "Dannyyi"]
[Result "1-0"]
[WhiteElo "2427"]
[BlackElo "2019"]
[TimeControl "180+1"]
[EndTime "8:18:51 PDT"]
[Termination "Daniel_Salinas won by checkmate"]

1. e4 {[%clk 0:02:56.2]} 1... e5 {[%clk 0:02:59.7]} 2. Nf3 {[%clk 0:02:56.5]}
2... Nc6 {[%clk 0:02:59.7]} 3. Nc3 {[%clk 0:02:56.3]} 3... Nf6 {[%clk
0:02:59.5]} 4. Bb5 {[%clk 0:02:56.9]} 4... Nd4 {[%clk 0:02:58.8]} 5. Bc4 {[%clk
0:02:57.4]} 5... Bc5 {[%clk 0:02:51]} 6. d3 {[%clk 0:02:52.1]} 6... d6 {[%clk
0:02:50]} 7. Be3 {[%clk 0:02:52.6]} 7... Bg4 {[%clk 0:02:48.6]} 8. Bxd4 {[%clk
0:02:43.7]} 8... Bxd4 {[%clk 0:02:45.1]} 9. h3 {[%clk 0:02:43.8]} 9... Bxf3
{[%clk 0:02:35.1]} 10. Qxf3 {[%clk 0:02:44.7]} 10... O-O {[%clk 0:02:34]} 11.
Ne2 {[%clk 0:02:38.1]} 11... Bxb2 {[%clk 0:02:26.5]} 12. Rb1 {[%clk 0:02:38.3]}
12... Ba3 {[%clk 0:02:26.8]} 13. Rxb7 {[%clk 0:02:38.3]} 13... Bc5 {[%clk
0:02:22.1]} 14. Rb1 {[%clk 0:02:36.2]} 14... Rb8 {[%clk 0:02:21.4]} 15. Rxb8
{[%clk 0:02:35.9]} 15... Qxb8 {[%clk 0:02:22.3]} 16. O-O {[%clk 0:02:35.4]}
16... Qb2 {[%clk 0:02:15.6]} 17. Bb3 {[%clk 0:02:34.1]} 17... a5 {[%clk
0:02:13.5]} 18. a4 {[%clk 0:02:27.7]} 18... Rb8 {[%clk 0:02:10.7]} 19. Ng3
{[%clk 0:02:24.4]} 19... c6 {[%clk 0:01:47.6]} 20. Nf5 {[%clk 0:02:23.9]} 20...
d5 {[%clk 0:01:45.3]} 21. exd5 {[%clk 0:02:23]} 21... cxd5 {[%clk 0:01:44.6]}
22. Bxd5 {[%clk 0:02:23.6]} 22... Nxd5 {[%clk 0:01:42.6]} 23. Qxd5 {[%clk
0:02:24.5]} 23... Bf8 {[%clk 0:01:25.3]} 24. c4 {[%clk 0:02:23.8]} 24... g6
{[%clk 0:01:15.8]} 25. Ne3 {[%clk 0:02:21.9]} 25... Qc3 {[%clk 0:01:07.1]} 26.
Qe4 {[%clk 0:02:10.2]} 26... Rb3 {[%clk 0:01:02.3]} 27. Rd1 {[%clk 0:02:03.7]}
27... Bc5 {[%clk 0:01:00.9]} 28. Nd5 {[%clk 0:01:13.6]} 28... Qc2 {[%clk
0:00:55.8]} 29. Rf1 {[%clk 0:01:03.3]} 29... Bd4 {[%clk 0:00:42.2]} 30. Ne7+
{[%clk 0:00:50.6]} 30... Kf8 {[%clk 0:00:38.7]} 31. Nc6 {[%clk 0:00:49.5]} 31...
Qxd3 {[%clk 0:00:34.8]} 32. Qh4 {[%clk 0:00:48.1]} 32... Kg7 {[%clk 0:00:28.8]}
33. Qe7 {[%clk 0:00:36.8]} 33... Rb1 {[%clk 0:00:23.6]} 34. Rxb1 {[%clk
0:00:34.1]} 34... Qxb1+ {[%clk 0:00:24.5]} 35. Kh2 {[%clk 0:00:33.6]} 35... Qe4
{[%clk 0:00:18.9]} 36. Nxd4 {[%clk 0:00:30.3]} 36... Qxd4 {[%clk 0:00:19.8]} 37.
Kg1 {[%clk 0:00:18.7]} 37... Qf4 {[%clk 0:00:15.5]} 38. g3 {[%clk 0:00:17.3]}
38... Qc1+ {[%clk 0:00:15.4]} 39. Kg2 {[%clk 0:00:17.9]} 39... Qc3 {[%clk
0:00:14.7]} 40. c5 {[%clk 0:00:17.4]} 40... Qd4 {[%clk 0:00:12.9]} 41. c6 {[%clk
0:00:15.4]} 41... Qe4+ {[%clk 0:00:12.8]} 42. Kh2 {[%clk 0:00:14.4]} 42... Qxc6
{[%clk 0:00:10.1]} 43. Qxe5+ {[%clk 0:00:14.8]} 43... Kh6 {[%clk 0:00:09.1]} 44.
Qxa5 {[%clk 0:00:15.7]} 44... Qc2 {[%clk 0:00:08.5]} 45. Kg1 {[%clk 0:00:12.1]}
45... Qd1+ {[%clk 0:00:08.4]} 46. Kg2 {[%clk 0:00:12.4]} 46... Qc2 {[%clk
0:00:08.2]} 47. Qb5 {[%clk 0:00:08.7]} 47... Qe4+ {[%clk 0:00:07.9]} 48. Kh2
{[%clk 0:00:07.5]} 48... Qf3 {[%clk 0:00:06.3]} 49. Kg1 {[%clk 0:00:07.9]} 49...
Qd1+ {[%clk 0:00:06.1]} 50. Kg2 {[%clk 0:00:08.6]} 50... Qc2 {[%clk 0:00:03.8]}
51. a5 {[%clk 0:00:06.4]} 51... Qe4+ {[%clk 0:00:04.2]} 52. Kh2 {[%clk
0:00:06.1]} 52... Qf3 {[%clk 0:00:04.1]} 53. Kg1 {[%clk 0:00:06.7]} 53... Qd1+
{[%clk 0:00:02.9]} 54. Kg2 {[%clk 0:00:07.3]} 54... Qa1 {[%clk 0:00:03.6]} 55.
a6 {[%clk 0:00:07.5]} 55... f5 {[%clk 0:00:03.9]} 56. Qb7 {[%clk 0:00:07.5]}
56... f4 {[%clk 0:00:04.1]} 57. a7 {[%clk 0:00:07]} 57... Qa3 {[%clk 0:00:03.6]}
58. a8=Q {[%clk 0:00:06.6]} 58... f3+ {[%clk 0:00:04.5]} 59. Qxf3 {[%clk
0:00:06.2]} 59... Qc1 {[%clk 0:00:04.8]} 60. Qf4+ {[%clk 0:00:06.5]} 60... Qxf4
{[%clk 0:00:04.9]} 61. gxf4 {[%clk 0:00:07.4]} 61... Kg7 {[%clk 0:00:05.5]} 62.
Qf3 {[%clk 0:00:07.7]} 62... Kh6 {[%clk 0:00:06.4]} 63. f5 {[%clk 0:00:08.3]}
63... gxf5 {[%clk 0:00:05.6]} 64. Qxf5 {[%clk 0:00:09.2]} 64... Kg7 {[%clk
0:00:05.3]} 65. Qe6 {[%clk 0:00:09.4]} 65... Kf8 {[%clk 0:00:04.7]} 66. Qd7
{[%clk 0:00:09.3]} 66... Kg8 {[%clk 0:00:04.9]} 67. Kf3 {[%clk 0:00:10.2]} 67...
h6 {[%clk 0:00:05.3]} 68. Kf4 {[%clk 0:00:11.1]} 68... h5 {[%clk 0:00:06.2]} 69.
Kf5 {[%clk 0:00:12]} 69... h4 {[%clk 0:00:06.9]} 70. Kf6 {[%clk 0:00:12.9]}
70... Kh8 {[%clk 0:00:07.3]} 71. Qg7# {[%clk 0:00:13.2]} 1-0